Cogmind - Beta 10.1 @@@ ROGUE MODE // 2020.09.29 @ 19:26:22 Player: RAT Result: Destroyed by S-27 Virus with Autogun Performance ------------- Evolutions (3) 1500 Regions Visited (4) 800 Robots Destroyed (26) 130 Value Destroyed (910) 910 Prototype IDs (0) 0 Alien Tech Used (0) 0 Bonus (0) 0 TOTAL SCORE: 3340 Bonus ------- None Cogmind --------- Core Integrity 0/700 Matter 295/300 Energy 80/100 System Corruption 0% Temperature Cool (0) Movement Core (300) Ox5 Location -7/Factory Parts ------- > --- POWER (1) -------- (None) > --- PROPULSION (4) --- (None) > --- UTILITY (6) ------ Large Storage Unit Advanced Visual Processing Unit Improved Melee Analysis Suite Core Analyzer > --- WEAPON (2) ------- (None) > --- INVENTORY (10) --- Improved Sensor Array Advanced Signal Interpreter Heavy Assault Rifle Grenade Launcher Heavy Rocket Launcher Power Maul Spear Peak State ------------ > --- POWER ------------ Light Nuclear Core > --- PROPULSION ------- Aluminum Leg Carbon-fiber Leg Carbon-fiber Leg Carbon-fiber Leg > --- UTILITY ---------- Large Storage Unit Advanced Visual Processing Unit Improved Sensor Array Improved Melee Analysis Suite Core Analyzer Microactuators > --- WEAPON ----------- Great Axe Spear > --- INVENTORY -------- Ion Engine Light Ion Engine Large Storage Unit Improved Sensor Array Advanced Signal Interpreter Pulse Rifle Heavy Assault Rifle Grenade Launcher Mini Grenade Launcher Heavy Rocket Launcher [Rating: 41] Favorites ----------- Power Ion Engine Engine Ion Engine Power Core Light Nuclear Core Propulsion Aluminum Leg Leg Aluminum Leg Wheel Wheel Utility Large Storage Unit Device Improved Sensor Array Storage Large Storage Unit Processor Advanced Visual Processing Unit Protection Improved Light Armor Plating Weapon Assault Rifle Energy Gun Small Laser Ballistic Gun Assault Rifle Launcher Grenade Launcher Slashing Weapon Great Axe Piercing Weapon Spear Build | -11 -10 -9 -8 -7 ------- Run | Scr Mat Mat Mat Fac Slots Evolved 6 | . . 2 2 2 Power . | . . . . . Propulsion 2 | . . 1 1 . Utility 4 | . . 1 1 2 Weapon . | . . . . . Parts Attached 39 | 6 3 9 4 17 Power 6 | 1 1 . . 4 Engine 4 | 1 1 . . 2 Core 2 | . . . . 2 Reactor . | . . . . . Propulsion 8 | 2 . 3 1 2 Treads . | . . . . . Leg 6 | . . 3 1 2 Wheel 2 | 2 . . . . Hover . | . . . . . Flight . | . . . . . Utility 14 | 1 1 5 3 4 Device 4 | . . 2 . 2 Storage 5 | 1 1 2 1 . Processor 4 | . . . 2 2 Hackware . | . . . . . Protection 1 | . . 1 . . Artifact . | . . . . . Weapon 11 | 2 1 1 . 7 Energy Gun 6 | 1 1 1 . 3 Energy Cannon . | . . . . . Ballistic Gun 2 | 1 . . . 1 Ballistic Cannon . | . . . . . Launcher 1 | . . . . 1 Special Weapon . | . . . . . Impact Weapon . | . . . . . Slashing Weapon 1 | . . . . 1 Piercing Weapon 1 | . . . . 1 Special Melee Weapon . | . . . . . Unidentified Prototypes . | . . . . . Parts Lost 15 | . 1 . . 14 Power 3 | . . . . 3 Propulsion 6 | . . . . 6 Utility 2 | . . . . 2 Weapon 4 | . 1 . . 3 Highest Loss Streak 10 | . 1 . . 10 Average Slot Usage (%) 94 | . 97 98 97 92 Engine 6 | . 14 11 9 1 Core 2 | . . . . 5 Leg 22 | . . 31 33 26 Wheel 5 | . 28 . . . Device 8 | . . 7 9 12 Storage 12 | . 25 14 13 7 Processor 13 | . . . 4 23 Protection 2 | . . 10 8 . Energy Gun 6 | . 13 11 9 2 Ballistic Gun 7 | . 14 11 9 2 Slashing Weapon 1 | . . . . 3 Piercing Weapon 1 | . . . . 3 Naked Turns . | . . . . . Heaviest Build 44 | 11 16 28 44 32 Greatest Support 55 | 20 20 30 45 55 Greatest Overweight (x) 9 | . . . 1 9 Average Overweight (x) . | . . . . . Largest Inventory Capacity 16 | 6 8 16 16 10 Average Capacity 9 | 5 7 6 13 10 Most Carried 10 | 6 8 8 10 10 Average Carried 7 | 3 6 5 7 7 Final Capacity 10 | 6 8 10 10 10 Final Carried 9 | 4 8 6 9 7 Class Distribution -------------------- 100% | Mutant Dominant Class ---------------- Mutant | -10/Materials Mutant | -9/Materials Mutant | -8/Materials Mutant | -7/Factory Resources | -11 -10 -9 -8 -7 ----------- Run | Scr Mat Mat Mat Fac Matter Collected 783 | 185 185 50 13 350 Remotely . | . . . . . Salvage Created 934 | . 225 50 13 646 Parts 62 | . 18 4 4 36 Haulers Intercepted . | . . . . . Recyclers Shooed 1 | . 1 . . . Parts Field Recycled . | . . . . . Retrieved Matter . | . . . . . Parts Self-Destructed . | . . . . . Prevented . | . . . . . Kills | -11 -10 -9 -8 -7 ------- Run | Scr Mat Mat Mat Fac Combat Hostiles Destroyed 23 | . 7 1 . 15 Melee 5 | . . . . 5 Guns 16 | . 7 1 . 8 AOE 2 | . . . . 2 Classes Destroyed 7 | . 3 1 1 2 Worker 1 | . 1 . . . Builder 1 | . . . 1 . Watcher 1 | . . . . 1 Swarmer 8 | . 3 . . 5 Grunt 10 | . 4 . . 6 Sentry 4 | . . 1 . 3 Programmer 1 | . . . . 1 Best Kill Streak 4 | . 3 1 1 4 Combat Bots Only 4 | . 3 1 . 4 Max Kills in Single Turn 2 | . 1 1 1 2 Gunslinging . | . . . . . Exploded 1 | . . . . 1 Melee 1 | . . . . 1 Uniques/NPCs Destroyed . | . . . . . Combat | -11 -10 -9 -8 -7 -------- Run | Scr Mat Mat Mat Fac Damage Taken 2382 | . 363 103 . 1916 Core 833 | . 130 . . 703 Absorbed by Shields . | . . . . . Core Remaining (%) 87 | 100 48 100 100 . Volleys Fired 72 | . 33 6 4 29 Largest 2 | . 2 2 2 2 Hottest 93 | . 70 60 60 93 Shots Fired 132 | . 64 12 8 48 Gun 130 | . 64 12 8 46 Cannon . | . . . . . Launcher 2 | . . . . 2 Special . | . . . . . Kinetic 69 | . 33 6 4 26 Thermal 48 | . 31 6 4 7 Explosive 2 | . . . . 2 Electromagnetic 13 | . . . . 13 Robot Hit Streak 13 | . 12 13 5 12 Robot Miss Streak 3 | . 3 2 1 2 Penetration Max . | . . . . . Secondary Targets 2 | . 2 . . . Max Gunslinging Chain 1 | . 1 . . . Shots Hit Robots 100 | . 44 8 6 42 Core Hits 51 | . 13 2 3 33 Critical Hits 1 | . . . . 1 Critical Kills 1 | . . . . 1 Critical Parts Destroyed . | . . . . . Melee Attacks 15 | . . . . 15 Impact . | . . . . . Slashing 10 | . . . . 10 Piercing 5 | . . . . 5 Sneak Attacks . | . . . . . Combat Hostiles . | . . . . . Follow-up Attacks 1 | . . . . 1 Damage Inflicted 1792 | . 452 97 58 1185 Guns 1094 | . 452 97 58 487 Cannons . | . . . . . Explosions 246 | . . . . 246 Melee 452 | . . . . 452 Ramming . | . . . . . Kinetic 672 | . 287 52 24 309 Thermal 416 | . 165 45 34 172 Explosive 143 | . . . . 143 Electromagnetic 109 | . . . . 109 Impact . | . . . . . Slashing 341 | . . . . 341 Piercing 111 | . . . . 111 Highest Corruption . | . . . . . Average Corruption . | . . . . . Corruption Purged . | . . . . . Overload Shots . | . . . . . Overflow Damage 62 | . . . . 62 Projectiles . | . . . . . Explosions 36 | . . . . 36 Melee 26 | . . . . 26 Knockbacks . | . . . . . Impact . | . . . . . Kinetic . | . . . . . Secondary . | . . . . . Self-Inflicted Damage 54 | . . . . 54 Shots 1 | . . . . 1 Rammed . | . . . . . Targets Rammed . | . . . . . Kicked . | . . . . . Crushed . | . . . . . Highest Temperature 153 | . 153 14 . 39 Average Temperature 37 | . 74 6 . 12 Received Heat Transfer 441 | . 108 27 . 306 Siege Activations . | . . . . . Robots Corrupted . | . . . . . Combat Hostiles . | . . . . . Parts Fried . | . . . . . Impact Corruptions . | . . . . . Robots Melted . | . . . . . Combat Hostiles . | . . . . . Parts Melted 1 | . . . . 1 Heat Transferred 795 | . 422 100 75 198 Parts Sabotaged . | . . . . . Parts Stolen . | . . . . . Parts Stripped . | . . . . . Power Chain Reactions 1 | . . . . 1 Missiles Intercepted . | . . . . . Alert | -11 -10 -9 -8 -7 ------- Run | Scr Mat Mat Mat Fac Peak Influence 220 | . 195 126 72 220 Initial 81 | . . 81 52 32 Average 83 | . 78 93 61 94 Maximum Alert Level 1 | . . . . 1 Low Security (%) 98 | 100 100 100 100 97 Level 1 1 | . . . . 2 Level 2 . | . . . . . Level 3 . | . . . . . Level 4 . | . . . . . Level 5 . | . . . . . High Security . | . . . . . Max Security . | . . . . . Squads Dispatched 1 | . . . . 1 Investigation . | . . . . . Extermination 1 | . . . . 1 Reinforcement . | . . . . . Assault . | . . . . . Garrison . | . . . . . Intercept . | . . . . . Construction Impeded . | . . . . . Haulers Reinforced . | . . . . . Stealth | -11 -10 -9 -8 -7 --------- Run | Scr Mat Mat Mat Fac Distress Signals 3 | . . . 1 2 Communications Jammed . | . . . . . Distress Signals . | . . . . . Times Spotted 49 | . 13 3 6 27 Peak Tracking Total 6 | . 5 3 4 6 Tactical Retreats 3 | . 1 . 1 1 Traps | -11 -10 -9 -8 -7 ------- Run | Scr Mat Mat Mat Fac Traps Triggered . | . . . . . Indirectly . | . . . . . Trap Hack Attempts . | . . . . . Triggered . | . . . . . Disarmed . | . . . . . Reprogrammed . | . . . . . Reused . | . . . . . Traps Extracted . | . . . . . Installed . | . . . . . Triggered . | . . . . . Machines | -11 -10 -9 -8 -7 ---------- Run | Scr Mat Mat Mat Fac Machines Disabled . | . . . . . Max in Single Turn . | . . . . . Machines Sabotaged . | . . . . . Garrisons Compromised . | . . . . . Overloaded Fab Kills . | . . . . . Fab Network Shutdowns . | . . . . . Hacking | -11 -10 -9 -8 -7 --------- Run | Scr Mat Mat Mat Fac Machines Accessed . | . . . . . Terminals . | . . . . . Fabricators . | . . . . . Repair Stations . | . . . . . Recycling Units . | . . . . . Scanalyzers . | . . . . . Garrison Access . | . . . . . Total Hacks . | . . . . . Successful . | . . . . . Failed . | . . . . . Catastrophic . | . . . . . Database Lockouts . | . . . . . Manual . | . . . . . Terminals . | . . . . . Fabricators . | . . . . . Repair Stations . | . . . . . Recycling Units . | . . . . . Scanalyzers . | . . . . . Garrison Access . | . . . . . Terminal Hacks . | . . . . . Fabricator Hacks . | . . . . . Repair Station Hacks . | . . . . . Recycling Unit Hacks . | . . . . . Scanalyzer . | . . . . . Garrison Access Hacks . | . . . . . Unauthorized Hacks . | . . . . . Terminals . | . . . . . Fabricators . | . . . . . Repair Stations . | . . . . . Recycling Units . | . . . . . Scanalyzers . | . . . . . Garrison Access . | . . . . . Data Cores Recovered . | . . . . . Used . | . . . . . Hacking Detections . | . . . . . Full Trace Events . | . . . . . Feedback Events . | . . . . . Feedback Blocked . | . . . . . Robot Schematics Acquired . | . . . . . Robots Built . | . . . . . Matter . | . . . . . Time . | . . . . . Total Robot Build Rating . | . . . . . Part Schematics Acquired . | . . . . . Parts Built . | . . . . . Matter . | . . . . . Time . | . . . . . Total Part Build Rating . | . . . . . Parts Repaired . | . . . . . Time . | . . . . . Parts Recycled . | . . . . . Recycled Matter . | . . . . . Retrieved Matter . | . . . . . Retrieved Components . | . . . . . Parts Scanalyzed . | . . . . . Part Schematics Acquired . | . . . . . Parts Damaged . | . . . . . Bothacking | -11 -10 -9 -8 -7 ------------ Run | Scr Mat Mat Mat Fac Used RIF Installer . | . . . . . Robots Hacked . | . . . . . Non-combat . | . . . . . Combat . | . . . . . Robot Hacks Applied . | . . . . . Relay Couplers Released . | . . . . . Robots Rewired . | . . . . . Allies Hacked . | . . . . . Hacks Repelled . | . . . . . Allies | -11 -10 -9 -8 -7 -------- Run | Scr Mat Mat Mat Fac Total Allies . | . . . . . Largest Group . | . . . . . Highest-Rated Group . | . . . . . Highest-Rated Ally . | . . . . . Total Orders . | . . . . . Ally Attacks . | . . . . . Total Damage . | . . . . . Kills . | . . . . . Allies Corrupted . | . . . . . Allies Melted . | . . . . . Intel | -11 -10 -9 -8 -7 ------- Run | Scr Mat Mat Mat Fac Robot Analysis Total . | . . . . . Derelict Logs Recovered . | . . . . . Drone Launches . | . . . . . Drone Recoveries . | . . . . . Exploration | -11 -10 -9 -8 -7 ------------- Run | Scr Mat Mat Mat Fac Turns Passed 1904 | 46 392 161 318 987 Spaces Moved 1356 | 41 316 98 234 667 Core 7 | 5 . . . 2 Treads . | . . . . . Legs 997 | . . 98 234 665 Wheels 352 | 36 316 . . . Hover . | . . . . . Flight . | . . . . . Fastest Speed 50 | 50 80 120 120 120 Average Speed 110 | 76 80 120 125 120 Slowest Speed 500 | 80 80 120 150 500 Overloaded Moves . | . . . . . Propulsion Burnouts . | . . . . . Robots Hopped . | . . . . . Cave-ins Triggered . | . . . . . Exploration Rate (%) 23 | 3 56 16 25 19 Regions Visited 4 Branch Regions . Pre-discovered Areas . | . . . . . Known Exits Taken . | . . . . . Unknown Exits Taken 4 | 1 1 1 1 . Scrap Searched . | . . . . . Spaces Dug . | . . . . . Terrain Destroyed 20 | . . . . 20 Melee . | . . . . . Projectile . | . . . . . AOE 20 | . . . . 20 Terrain Rammed . | . . . . . Walls Destroyed . | . . . . . Machines Disabled . | . . . . . Actions | -11 -10 -9 -8 -7 --------- Run | Scr Mat Mat Mat Fac Total 1605 | 54 391 131 250 779 Wait 70 | . 32 8 . 30 Move 1352 | 40 315 97 233 667 Hop . | . . . . . Pick Up 39 | 8 6 5 7 13 Fast Attach 3 | 2 1 . . . Attach 21 | 4 1 5 2 9 Detach 2 | . . . . 2 Swap 15 | . 1 4 2 8 Drop 17 | . 2 6 2 7 Fire 72 | . 33 6 4 29 Melee 14 | . . . . 14 Ram . | . . . . . Kick . | . . . . . Crush . | . . . . . Escape Stasis . | . . . . . Rewire . | . . . . . Trap . | . . . . . Miscellaneous . | . . . . . Route ------- -11/Scrapyard -10/Materials (discovered 2 exits: [*Mat] / [*Min]) -9/Materials -8/Materials -7/Factory History --------- Turn | Location | Event 11 | -11/Scrapyard | Discovered new exit (range 14) 47 | -11/Scrapyard | Entered Materials 123 | -10/Materials | Discovered new exit (range 16) 310 | -10/Materials | Build established: Mutant 328 | -10/Materials | Core integrity fell below 50% 383 | -10/Materials | Discovered new exit (range 6) 439 | -10/Materials | Entered another Materials area 439 | -9/Materials | Evolved 2 slots: Propulsion x1, Utility x1 564 | -9/Materials | Discovered new exit (range 16) 600 | -9/Materials | Entered another Materials area 600 | -8/Materials | Evolved 2 slots: Propulsion x1, Utility x1 845 | -8/Materials | Discovered new exit (range 5) 918 | -8/Materials | Entered Factory 918 | -7/Factory | Evolved 2 slots: Utility x2 1171 | -7/Factory | Lost 3 parts (1p1n1w) 1889 | -7/Factory | Core integrity fell below 50% 1899 | -7/Factory | Core integrity fell below 20% 1905 | -7/Factory | Destroyed by S-27 Virus with Autogun Last Messages --------------- 01876_ S-27 Virus unfolds itself. 01876_ K-01 Serf collects debris. 01877_ Carbon-fiber Leg destroyed. 01879_ Y-54 Guardian destroyed. 01880_ K-01 Serf collects debris. 01881_ Adv. Sensor Array destroyed. 01881_ K-01 Serf collects debris. 01883_ Acquired 10 matter. 01884_ K-01 Serf collects debris. 01888_ Destroyed VTOL Module. 01889_ Great Axe destroyed. 01890_ Mic. Nuclear Core destroyed. 01890_ K-01 Serf cleans the Subcomponent Replicator. 01890_ S-27 Virus destroyed. 01891_ K-01 Serf collects debris. 01896_ Destroyed VTOL Module. 01898_ K-01 Serf collects debris. 01901_ S-27 Virus destroyed. 01901_ K-01 Serf collects debris. 01904_ Pulse Rifle destroyed. Map ----- +----------------------------------------------------+ | ?????????????????????????????????????????????????? | | ?????????????????????????????????????????????????? | | ?????????????????????????????????????????????????? | | ?????????????????????????????????????????????????? | | ?????????????????????????????????????????????????? | | ?????????????????????????????????????????????????? | | ?????????????????????????????????????????????????? | | ?????????????????????????????????????????????????? | | ?????????????????????????????????????????????????? | | ?????????????????????????????????????????????????? | | ?????????????????????????????????????????????????? | | ?????????????????????????????????????????????????? | | ?????????????????????????????????????????????????? | | ?????????????????????????????????????????????????? | | ?????????????????????????????????????????????????? | | ?????????????????????????????????????????????????? | | ?????????????????????????????????????????????????? | | ?????????????????????????????????????????????????? | | ?????????????????????????????????????????????????? | | ???????????????????????????#?????????????????????? | | ?????????????????????????? #?????????????????????? | | ?????????????????????????? #?????????????????????? | | ??????????????????????####+##########????????????? | | ??????????????????????#=%*[!Y ##???????????? | | ??????????????????????##=%! """"" / ?????? | | ???????????????????????#%@k """"" #????????????? | | ???????????????????????#*=%s""" k #????????????? | | ?#??????????????######## s ! #????????????? | | #??????????????# # k #????????????? | | #??????????????# # % "" #????????????? | | #??????????????# " " !# "" #????????????? | | #??????????????# "R" # T" #????????????? | | #??????????????# """ # "" #????????????? | | ???????????????# # u* "" #????????????? | | ????????????????####+### =*!! #?????#??????? | | ?????????????????# ##w############### #### # | | ####+#######+##### %| %= | | ^ =% | | % | | T ^ """ ############+############ | | """ #?????# # | | """ #?????# """ """ """ """ # ? | | ########## #?????# """ """ """ """ #?? | | ] #?### ####### """ """ """ """ #?? | | = ## ## # "" "" "" "" #?? | | * ##### # "" "" "" "" #? | | + % """"""" #[ # | | ##### """"""" #############+##### | | ### # """"""" # #??# #???### | | ######### ! """"""" # #??# #???### | +----------------------------------------------------+ Best States ------------- Heat Dissipation 34 Energy Generation 18 Energy Capacity 250 Matter Stores 300 Matter Capacity 300 Sight Range 20 Robot Scan Range 16 Terrain Scan Density 10 Armor Coverage 150 Melee Speed Boost 20 Evasion (%) 44 Melee Accuracy 6 Core Analysis 6 Item Schematics ----------------- None Robot Schematics ------------------ None Fabricated ------------ Nothing Alien Tech Used ----------------- None Achievements -------------- None Challenges ------------ None Game ------ Seed MetafiberThunderSteel Manual? 0 Play Time 00:24:45 Cumulative 8.8 hours Start 2020.09.29 @ 19:05:46 End 2020.09.29 @ 19:26:22 Sessions 1 Manual Loads 0 Difficulty Rogue Special Mode None Game No. 40 Rogue 40 Adventurer 0 Explorer 0 Win Type - Total 0 Types 0/0/0/0/0/0/0/0/0 Lore% 3 Gallery% 14 Achievement% 8 Wizard Run 0 Options --------- ASCII 0 Keyboard 0 Movement Mouse Keybinds 0 Fullscreen 1 Font 18/SmallcapsGlow Map View 76x50 Tactical HUD 1 Map Filters NONE Filters NONE Steam 1 RUN: 5c4e99f1-191d-446f-ba77-3d81da91673d